bitfinex-derivatives/quotes_ETHF0:USTF0_20241004
["timestamp","ask_amount","ask_price","bid_price","bid_amount"]
[1728044728562,0.81244,2387.4,2387.2,3.672]
[1728044728769,0.81244,2387.4,2387.3,0.41894]
[1728044729658,0.41894,2387.4,2387.3,0.41894]
[1728044730457,0.83061,2387.5,2387.4,0.41892]
[1728044730760,0.4117,2387.5,2387.4,0.41892]
[1728044730964,0.83061,2387.5,2387.4,0.41892]
[1728044731655,0.41889,2387.7,2387.4,0.41892]
[1728044731856,0.4189,2387.6,2387.5,0.4084]
[1728044732658,0.4189,2387.6,2387.5,0.8057]
[1728044732959,0.41889,2387.6,2387.5,1.2246]
[1728044733153,0.3899,2387.7,2387.4,0.41892]
[1728044733358,0.4189,2387.6,2387.5,0.4189]
[1728044734358,0.41891,2387.5,2387.4,0.41892]
[1728044734556,0.41891,2387.5,2387.4,0.41891]
[1728044735457,0.41889,2387.6,2387.5,0.4189]
[1728044735660,0.80877,2387.7,2387.6,0.41889]
[1728044736159,0.80877,2387.7,2387.5,0.41889]
[1728044736160,0.41889,2387.6,2387.5,0.41889]
[1728044737063,0.4189,2387.6,2387.5,0.4189]
[1728044738263,0.41891,2387.5,2387.4,0.41891]
[1728044738650,1.43709,2387.7,2387.3,4.0757]
[1728044738850,0.41891,2387.5,2387.4,0.41892]
[1728044739055,0.4189,2387.6,2387.3,4.0757]
[1728044739252,1.43709,2387.7,2387.3,4.0757]
[1728044739253,0.41891,2387.5,2387.4,0.41891]
[1728044739657,0.4189,2387.6,2387.5,0.4189]
[1728044740866,0.80878,2387.7,2387.6,0.41889]
[1728044741367,0.80878,2387.7,2387.3,5.12306]
[1728044741368,3.2078,2388.0,2387.5,3.27]
[1728044741567,0.41888,2387.7,2387.6,0.41888]
[1728044742570,0.41891,2387.5,2387.4,3.2078]
[1728044743058,0.82831,2387.5,2387.4,3.62672]
[1728044743253,0.4094,2387.5,2387.4,3.62672]
[1728044745363,0.82831,2387.5,2387.4,3.62672]
[1728044745568,0.4094,2387.5,2387.4,3.62672]
[1728044745965,0.4094,2387.5,2387.4,0.41892]
[1728044746166,0.4094,2387.5,2387.4,3.62672]
[1728044746561,0.41892,2387.4,2387.3,1.22463]
[1728044746771,0.84432,2387.4,2387.3,1.22463]
[1728044748677,0.4094,2387.5,2387.3,0.8057]
[1728044748879,0.4094,2387.5,2387.4,3.68892]
[1728044751260,1.04714,2387.8,2387.4,3.68892]
[1728044751261,0.41887,2387.8,2387.7,0.41885]
[1728044751462,0.84447,2387.8,2387.7,0.41885]
[1728044752064,0.84447,2387.8,2387.7,1.22645]
[1728044752771,0.41887,2387.7,2387.6,0.41888]
[1728044752976,0.4189,2387.6,2387.5,0.41889]
[1728044753372,1.04718,2387.7,2387.4,0.8076]
[1728044753373,0.41888,2387.7,2387.6,0.41887]
[1728044756576,0.41891,2387.6,2387.5,0.41889]
[1728044758779,0.41891,2387.6,2387.4,0.8076]
[1728044758968,0.41891,2387.5,2387.4,1.22651]
[1728044759168,0.81401,2387.5,2387.4,1.22651]
[1728044759370,0.4256,2387.8,2387.5,1.04727]
[1728044759577,0.84447,2387.8,2387.7,0.41887]
[1728044760173,0.84447,2387.8,2387.4,1.85488]
[1728044760371,0.41891,2387.6,2387.4,0.8076]
[1728044760570,0.41891,2387.5,2387.4,0.8076]
[1728044760782,0.41891,2387.5,2387.3,4.02733]
[1728044760783,0.4105,2387.5,2387.3,4.02733]
[1728044761078,0.84272,2387.4,2387.3,4.02733]
[1728044761271,0.84272,2387.4,2387.3,3.62674]
[1728044762679,0.41891,2387.5,2387.4,0.41892]
[1728044764188,0.41892,2387.4,2387.3,3.62673]
[1728044764383,3.2078,2387.9,2387.8,0.41885]
[1728044764681,3.2078,2387.9,2387.8,3.68885]
[1728044765081,0.7882,2388.1,2388.0,0.41882]
[1728044765683,1.207,2388.1,2388.0,0.41882]
[1728044765984,1.207,2388.1,2387.8,3.27]
[1728044766184,1.207,2388.1,2388.0,0.41882]
[1728044766382,1.207,2388.1,2387.9,0.41883]
[1728044766582,0.7882,2388.1,2387.7,1.2173]
[1728044766776,0.41885,2387.8,2387.7,1.2173]
[1728044767690,0.41885,2387.8,2387.7,1.63617]
[1728044767987,0.41885,2387.8,2387.7,1.2173]
[1728044768381,0.41885,2387.8,2387.7,0.8117]
[1728044768994,0.41885,2387.8,2387.7,1.23056]
[1728044769288,1.04705,2388.0,2387.7,1.23056]
[1728044769590,0.41885,2387.9,2387.7,1.23056]
[1728044769892,0.41885,2387.9,2387.8,0.41885]
[1728044770790,0.41885,2387.9,2387.7,1.23056]
[1728044771287,0.41882,2388.0,2387.9,0.41883]
[1728044771691,4.60682,2388.0,2387.7,0.8117]
[1728044771885,0.41882,2388.0,2387.8,0.41884]
[1728044772084,0.41882,2388.0,2387.7,0.8117]
[1728044772286,0.41882,2388.0,2387.9,0.41884]
[1728044772684,0.41884,2387.9,2387.8,0.41885]
[1728044773182,1.04688,2388.4,2387.9,0.41884]
[1728044773492,0.41878,2388.2,2388.1,0.41879]
[1728044775586,0.4124,2388.3,2388.1,0.41879]
[1728044775587,0.83118,2388.3,2388.1,0.41879]
[1728044775795,0.41878,2388.2,2388.1,0.41879]
[1728044775993,0.4124,2388.3,2387.9,1.0471]
[1728044776290,0.83117,2388.3,2387.9,4.3171]
[1728044776495,0.83117,2388.3,2388.2,0.41878]
[1728044776996,5.01837,2388.3,2388.2,0.41878]
[1728044777291,4.5996,2388.3,2388.2,0.41878]
[1728044777493,3.2078,2388.5,2388.2,3.68878]
[1728044777686,7.391,2388.8,2388.5,0.41873]
[1728044777687,0.83632,2388.6,2388.5,0.41873]
[1728044777892,0.4176,2388.6,2388.5,0.41873]
[1728044778094,0.83631,2388.6,2388.5,0.41873]
[1728044778789,0.4176,2388.6,2388.3,1.227]
[1728044779098,0.41875,2388.5,2388.4,0.41874]
[1728044780093,0.41878,2388.2,2388.1,0.5168]
[1728044780293,0.41878,2388.2,2388.1,0.4188]
[1728044781492,0.41878,2388.2,2387.9,3.2078]
[1728044781493,0.41882,2388.0,2387.9,3.2078]
[1728044781896,7.458,2388.0,2387.6,0.098]
[1728044782084,3.9929,2388.1,2387.6,1.26817]
[1728044782085,0.41887,2387.7,2387.6,1.26817]
[1728044782296,0.41887,2387.7,2387.6,0.8493]
[1728044782597,0.81817,2387.7,2387.6,0.8493]
[1728044785693,0.41893,2387.4,2387.3,0.41892]
[1728044785994,0.41893,2387.4,2387.3,0.81182]
[1728044786292,0.41893,2387.4,2387.3,5.00062]
[1728044786488,0.41893,2387.4,2387.3,0.81182]
[1728044786696,0.3993,2387.7,2387.3,0.3929]
[1728044786993,0.4189,2387.6,2387.5,0.41889]
[1728044789093,0.41891,2387.5,2387.4,1.22482]
[1728044790088,0.41891,2387.5,2387.4,0.8059]
[1728044790896,0.41891,2387.5,2387.4,1.22482]
[1728044791496,4.71653,2387.7,2387.4,1.22482]
[1728044791691,0.4189,2387.6,2387.5,0.41889]
[1728044792398,0.81819,2387.7,2387.6,0.41889]
[1728044792696,0.41891,2387.6,2387.5,0.4189]
[1728044795006,0.3993,2387.7,2387.4,0.8059]
[1728044795194,0.41891,2387.5,2387.4,1.22481]
[1728044798608,0.41891,2387.5,2387.4,0.8059]
[1728044798912,0.41891,2387.5,2387.4,1.22482]
[1728044799703,0.3993,2387.7,2387.4,4.9947]
[1728044799908,0.3993,2387.7,2387.6,0.41887]
[1728044799909,0.41888,2387.7,2387.6,0.41887]
[1728044800300,3.62667,2387.8,2387.7,0.41887]
[1728044801099,0.41888,2387.7,2387.6,0.41887]
[1728044803301,0.41887,2387.8,2387.7,0.41887]
[1728044804312,0.41889,2387.7,2387.6,0.41888]
[1728044805306,0.41887,2387.8,2387.7,0.41887]
[1728044805702,0.41887,2387.8,2387.7,0.41885]
[1728044806402,0.82985,2387.9,2387.8,0.41885]
[1728044806708,0.41885,2387.9,2387.8,0.41885]
[1728044807310,0.41885,2387.9,2387.8,1.26945]
[1728044807913,0.41883,2388.0,2387.9,0.41882]
[1728044808805,0.4253,2388.1,2387.8,0.8506]
[1728044808806,1.47231,2388.1,2387.8,0.8506]
[1728044809007,0.41883,2388.0,2387.9,0.41882]
[1728044809409,0.41884,2387.9,2387.8,1.26944]
[1728044809611,0.41883,2388.0,2387.9,0.41883]
[1728044810002,2.98231,2388.1,2387.8,0.8506]
[1728044810201,0.41883,2388.0,2387.9,0.41883]
[1728044810401,0.41882,2388.0,2387.9,0.41884]
[1728044810718,4.8158,2388.5,2387.9,5.698]
[1728044810904,4.8158,2388.5,2388.1,0.41879]
[1728044810905,0.41877,2388.3,2388.1,0.41879]
[1728044811213,0.41877,2388.3,2388.2,1.23318]
[1728044811599,0.3869,2388.4,2387.7,0.3907]
[1728044811600,3.2078,2388.5,2387.8,3.2078]
[1728044811802,0.41878,2388.3,2388.2,0.41878]
[1728044812606,1.92875,2388.4,2388.3,0.41877]
[1728044812797,0.41875,2388.4,2388.3,0.41877]
[1728044813403,0.41875,2388.4,2388.2,0.41877]
[1728044813609,0.41875,2388.4,2388.3,0.84337]
[1728044813907,1.92875,2388.4,2388.3,0.84337]
[1728044814609,3.2078,2388.5,2388.3,0.4246]
[1728044814806,4.7178,2388.5,2388.3,0.84335]
[1728044815011,0.41875,2388.4,2388.3,0.4246]
[1728044817612,1.04692,2388.3,2388.0,0.4071]
[1728044817912,1.9288,2388.2,2388.1,0.82479]
[1728044818107,2.3321,2388.2,2388.1,0.82479]
[1728044818307,0.4033,2388.2,2388.1,0.82479]
[1728044818513,1.92876,2388.4,2388.2,0.41877]
[1728044818816,0.41877,2388.3,2388.2,0.41877]
[1728044820115,1.9031,2388.4,2388.2,0.4254]
[1728044820310,1.9031,2388.4,2388.2,0.84418]
[1728044820311,0.41877,2388.3,2388.2,0.84418]
[1728044820510,1.92877,2388.3,2388.2,0.4254]
[1728044820711,1.92877,2388.3,2387.8,0.41885]
[1728044820712,0.41885,2387.9,2387.8,0.41885]
[1728044821012,0.41885,2387.9,2387.8,0.4001]
[1728044821411,1.04716,2387.8,2387.5,0.4189]
[1728044821703,0.41888,2387.7,2387.6,0.41888]
[1728044821907,0.41889,2387.7,2387.6,0.41889]
[1728044822104,1.51,2387.9,2387.7,0.41887]
[1728044822312,1.51,2387.8,2387.6,0.3961]
[1728044822512,1.92885,2387.9,2387.6,0.3961]
[1728044822713,1.92884,2387.9,2387.8,0.41885]
[1728044823214,0.81193,2388.0,2387.6,0.3961]
[1728044823412,0.81193,2388.0,2387.9,0.41884]
[1728044823614,0.81193,2388.0,2387.4,3.2078]
[1728044823615,0.3931,2388.0,2387.4,3.2078]
[1728044823911,0.3931,2388.0,2387.3,0.098]
[1728044823912,0.41892,2387.4,2387.3,0.098]
[1728044824112,0.41896,2387.2,2387.1,0.4011]
[1728044824415,0.41901,2386.9,2386.8,0.41902]
[1728044824616,0.41903,2386.8,2386.7,1.1891]
[1728044824810,0.41902,2386.9,2386.8,0.41902]
[1728044825004,0.81721,2386.9,2386.8,0.41903]
[1728044827012,0.3982,2386.9,2386.7,1.1891]
[1728044827213,0.41903,2386.8,2386.7,1.60813]
[1728044827415,0.81723,2386.9,2386.8,0.41903]
[1728044828723,0.3982,2386.9,2386.8,0.41903]
[1728044829015,0.81721,2386.9,2386.8,0.41903]
[1728044830615,0.3982,2386.9,2386.8,0.41903]
[1728044830819,0.81721,2386.9,2386.8,0.41903]
[1728044831017,0.3982,2386.9,2386.8,0.41903]
[1728044831217,0.419,2387.0,2386.7,1.1891]
[1728044831419,0.419,2387.0,2386.9,0.41901]
[1728044833120,0.413,2387.1,2386.7,1.1891]
[1728044833315,0.419,2387.0,2386.9,0.41899]
[1728044834313,0.413,2387.1,2386.7,1.1891]
[1728044834632,0.41896,2387.2,2387.1,0.41898]
[1728044834827,3.2078,2387.2,2386.6,0.098]
[1728044835121,0.3985,2387.1,2386.3,0.5061]
[1728044835318,0.41902,2386.9,2386.8,0.41902]
[1728044837024,0.41902,2386.9,2386.8,0.84812]
[1728044838223,4.10521,2387.0,2386.9,0.41901]
[1728044840419,0.41901,2386.9,2386.8,0.4291]
[1728044840624,0.41904,2386.8,2386.7,0.41903]
[1728044844530,0.41904,2386.8,2386.3,0.51711]
[1728044844531,0.41908,2386.5,2386.3,0.51711]
[1728044844730,0.41908,2386.5,2386.2,0.81222]
[1728044844731,0.41912,2386.3,2386.2,0.81222]
[1728044845033,0.41912,2386.3,2386.1,0.8459]
[1728044845034,0.41913,2386.2,2386.1,0.4244]
[1728044845227,3.68913,2386.2,2386.1,0.4244]
[1728044845427,0.41919,2385.9,2385.8,4.9626]
[1728044845627,3.68919,2385.9,2385.8,0.8146]
[1728044846234,0.41922,2385.7,2385.6,0.409]
[1728044847026,0.41926,2385.5,2385.4,3.2078]
[1728044847243,3.68926,2385.5,2385.4,3.2078]
[1728044847437,0.41925,2385.6,2385.4,3.62707]
[1728044847633,0.41923,2385.7,2385.4,3.62707]
[1728044848035,3.27,2385.8,2385.4,3.62707]
[1728044848230,0.41924,2385.6,2385.4,3.62707]
[1728044849039,0.41924,2385.6,2385.5,0.41926]
[1728044849247,3.2078,2385.9,2385.4,3.2078]
[1728044849540,3.2078,2385.9,2385.8,0.4192]
[1728044849838,3.2078,2385.9,2385.5,3.6908]
[1728044850039,3.62699,2385.9,2385.6,0.823]
[1728044850237,3.62699,2385.9,2385.8,0.4192]
[1728044851138,0.3951,2386.0,2385.6,0.823]
[1728044851334,0.81427,2386.0,2385.9,0.41919]
[1728044851530,0.41916,2386.1,2386.0,0.41916]
[1728044851736,4.25565,2386.2,2385.6,0.921]
[1728044851930,0.41916,2386.1,2386.0,0.41916]
[1728044852332,3.6856,2386.4,2385.7,0.098]
[1728044852333,4.31784,2386.2,2385.7,0.098]
[1728044852534,4.31784,2386.2,2386.0,0.41917]
[1728044852535,0.41916,2386.1,2386.0,0.41917]
[1728044853142,0.41917,2386.0,2385.9,0.41918]
[1728044853336,0.41916,2386.1,2386.0,0.41916]
[1728044855039,3.27,2386.2,2385.7,1.04806]
[1728044855350,0.41912,2386.3,2386.2,0.41912]
[1728044855739,0.83471,2386.4,2386.3,0.41912]
[1728044857946,0.41908,2386.6,2386.5,0.41907]
[1728044858351,0.41908,2386.5,2386.4,0.4126]
[1728044858839,0.41908,2386.5,2386.4,0.8317]
[1728044860341,0.41908,2386.5,2386.4,0.4126]
[1728044860841,0.41908,2386.5,2386.4,0.4191]
[1728044860842,0.80968,2386.5,2386.4,0.4191]
[1728044861952,0.41911,2386.4,2386.3,0.41911]
[1728044863153,0.41911,2386.4,2386.2,0.8105]
[1728044863154,0.80969,2386.5,2386.4,0.4191]
[1728044866846,0.3906,2386.5,2386.4,0.4191]
[1728044867543,0.80968,2386.5,2386.4,0.4191]
[1728044870055,0.80968,2386.5,2386.2,1.85834]
[1728044870056,0.3906,2386.5,2386.2,0.8105]
[1728044870348,0.3906,2386.5,2386.2,1.22962]
[1728044870349,3.68912,2386.3,2386.2,1.22962]
[1728044870756,3.68912,2386.3,2386.2,0.82452]
[1728044871750,0.3906,2386.5,2386.2,0.4054]
[1728044871953,0.41908,2386.6,2386.5,0.41908]
[1728044880553,0.4273,2386.7,2386.4,0.4189]
[1728044880760,0.84635,2386.7,2386.6,0.41906]
[1728044881256,0.41908,2386.6,2386.5,0.41907]
[1728044881558,4.11636,2386.7,2386.6,0.41906]
[1728044882263,0.41908,2386.6,2386.5,0.41907]
[1728044883761,0.41908,2386.6,2386.5,0.82467]
[1728044883964,3.68908,2386.6,2386.5,0.4056]
[1728044885163,0.41908,2386.5,2386.4,0.4191]
[1728044888970,3.27,2386.6,2386.2,1.04784]
[1728044889167,0.41904,2386.8,2386.7,0.41905]
[1728044890477,3.6268,2387.0,2386.9,0.41901]
[1728044890769,0.41904,2386.8,2386.7,0.41903]
[1728044890964,3.68904,2386.8,2386.7,0.41903]
[1728044891966,3.68904,2386.8,2386.4,4.25551]
[1728044891967,6.8968,2387.0,2386.9,0.41901]
[1728044892362,0.41903,2386.9,2386.8,0.41901]
[1728044894363,3.2078,2387.0,2386.9,0.41901]
[1728044894564,3.62679,2387.0,2386.9,0.41901]
[1728044894771,0.41902,2386.9,2386.8,0.41902]
[1728044894972,3.68902,2386.9,2386.8,0.41902]
[1728044896465,3.27,2386.9,2386.8,0.41902]
[1728044896666,3.62681,2387.0,2386.9,0.41901]
[1728044897574,0.41901,2387.0,2386.9,0.41901]
[1728044897774,3.68899,2387.1,2387.0,0.41899]
[1728044897983,0.419,2387.0,2386.9,0.419]
[1728044899173,0.419,2387.0,2386.5,1.0477]
[1728044899174,0.41902,2386.9,2386.8,0.41902]
[1728044899673,0.41901,2387.0,2386.9,0.419]
[1728044901071,0.41901,2387.0,2386.6,1.04766]
[1728044901271,0.41903,2386.9,2386.8,0.41901]
[1728044901874,0.41906,2386.8,2386.7,0.41904]
[1728044902073,0.41907,2386.7,2386.6,0.41905]
[1728044902673,0.41908,2386.6,2386.5,0.41907]
[1728044909083,0.41908,2386.5,2386.4,3.62688]
[1728044909290,0.41908,2386.6,2386.5,0.41906]
[1728044911781,0.41908,2386.5,2386.4,3.62689]
[1728044913484,0.41908,2386.6,2386.5,0.41906]
[1728044914282,0.41906,2386.7,2386.6,0.41905]
[1728044914980,4.25532,2387.0,2386.5,1.0477]
[1728044915286,1.04743,2387.2,2386.6,1.04767]
[1728044915491,0.41901,2387.1,2387.0,0.41898]
[1728044916385,0.41898,2387.2,2387.1,0.41896]
[1728044917683,3.2078,2387.3,2386.9,1.04754]
[1728044917885,3.62675,2387.3,2387.2,0.41896]
[1728044918086,6.89675,2387.3,2387.2,0.41896]
[1728044921185,3.62675,2387.3,2387.2,0.41896]
[1728044923588,3.2078,2387.3,2387.2,0.41896]
[1728044923794,3.62674,2387.3,2387.2,0.41896]
[1728044924997,3.2078,2387.3,2386.9,1.04754]
[1728044925202,0.41898,2387.2,2387.1,0.41896]
[1728044926801,0.419,2387.1,2387.0,0.41898]
[1728044931099,3.68898,2387.2,2387.1,0.41898]
[1728044931292,0.41898,2387.2,2387.1,0.41898]
[1728044931905,4.31743,2387.2,2386.7,3.2078]
[1728044932104,0.419,2387.1,2387.0,0.41898]
[1728044937196,0.41897,2387.2,2387.1,0.41896]
[1728044937401,3.62676,2387.3,2387.2,0.41896]
[1728044938404,0.41898,2387.2,2386.7,4.25539]
[1728044938613,0.41903,2386.9,2386.8,0.41901]
[1728044939310,0.41899,2387.1,2387.0,0.41898]
[1728044939811,0.41902,2386.9,2386.8,0.41901]
[1728044940407,0.41903,2386.8,2386.7,3.2078]
[1728044940605,0.41909,2386.6,2386.5,0.41907]
[1728044941018,0.41909,2386.6,2386.2,4.25564]
[1728044941019,3.27,2386.6,2386.2,4.25564]
[1728044941211,0.41908,2386.6,2386.5,0.41907]
[1728044942215,0.41903,2386.9,2386.5,5.2381]
[1728044942422,0.41904,2386.8,2386.7,0.41903]
[1728044943019,3.27,2387.2,2387.1,0.41897]
[1728044943020,0.41898,2387.2,2387.1,0.41897]
[1728044943531,1.14526,2387.6,2387.1,4.1888]
[1728044943532,0.41892,2387.5,2387.1,4.1888]
[1728044943815,3.2078,2387.7,2387.0,1.04745]
[1728044944010,0.41891,2387.5,2387.4,0.41892]
[1728044944210,3.27,2387.9,2387.3,1.04735]
[1728044944417,0.41885,2387.8,2387.3,1.04735]
[1728044944610,0.41885,2387.8,2387.2,6.4778]
[1728044944611,0.41889,2387.7,2387.5,0.4189]
[1728044944813,0.4189,2387.6,2387.4,0.41891]
[1728044945519,3.68888,2387.7,2387.3,0.41893]
[1728044945718,3.27,2387.5,2387.3,0.41893]
[1728044945916,3.27,2387.5,2387.4,0.41892]
[1728044946316,3.27,2387.5,2387.3,0.41893]
[1728044946824,3.27,2387.5,2387.2,3.2078]
[1728044947019,3.68892,2387.5,2387.2,3.2078]
[1728044947210,3.27,2387.5,2387.2,3.62675]
[1728044947414,3.68891,2387.5,2387.2,3.62675]
[1728044947817,3.68891,2387.5,2387.2,3.2078]
[1728044947818,0.41893,2387.4,2387.2,3.2078]
[1728044948121,3.27,2387.5,2387.2,3.2078]
[1728044948913,3.27,2387.5,2387.3,0.41894]
[1728044949120,3.68891,2387.5,2387.2,3.62675]
[1728044949717,0.41891,2387.5,2387.2,3.62675]
[1728044950220,0.4189,2387.6,2387.3,0.41894]
[1728044950919,3.68891,2387.5,2387.2,3.62675]
[1728044951316,3.27,2387.5,2387.2,3.2078]
[1728044951517,0.4189,2387.6,2387.3,0.41894]
[1728044951912,0.41888,2387.7,2387.4,0.41892]
[1728044952117,0.41888,2387.7,2387.2,3.2078]
[1728044952118,0.41889,2387.7,2387.3,0.41893]
[1728044952518,1.04713,2387.9,2387.3,0.41893]
[1728044952823,0.41888,2387.7,2387.4,0.41892]
[1728044953125,0.113,2388.3,2387.5,3.2078]
[1728044953126,3.3058,2388.3,2387.5,3.2078]
[1728044953319,0.41871,2388.7,2388.1,3.2078]
[1728044953519,3.2078,2388.9,2388.1,3.2078]
[1728044953722,0.41877,2388.3,2388.1,3.2078]
[1728044954021,1.04675,2388.7,2388.1,3.2078]
[1728044954219,0.41874,2388.5,2388.1,3.62659]
[1728044954731,3.2078,2388.9,2388.1,3.62659]
[1728044954732,0.41872,2388.6,2388.2,0.41877]
[1728044956323,3.2078,2388.9,2388.1,3.2078]
[1728044956529,0.41871,2388.7,2388.3,0.41876]
[1728044956821,3.2078,2388.9,2388.3,0.41876]
[1728044957021,0.41872,2388.6,2388.3,0.41876]
[1728044957226,0.41872,2388.6,2388.2,0.41877]
[1728044957828,0.41872,2388.6,2388.3,0.41876]
[1728044958020,3.2078,2388.9,2388.1,3.2078]
[1728044958217,0.41871,2388.7,2388.3,0.41876]
[1728044958431,0.41872,2388.6,2388.3,0.41876]
[1728044959927,3.2078,2388.9,2388.1,3.3058]
[1728044959928,0.4187,2388.7,2388.4,0.41875]
[1728044960321,0.41869,2388.8,2388.4,0.41875]
[1728044960927,3.62647,2388.9,2388.4,0.41875]
[1728044961121,3.62647,2388.9,2388.1,3.3058]
[1728044961122,3.2078,2388.9,2388.5,0.41872]
[1728044961928,0.41868,2388.8,2388.3,0.41875]
[1728044962137,3.2078,2388.9,2388.1,3.3058]
[1728044962331,3.62647,2388.9,2388.4,0.41874]
[1728044962738,3.62647,2388.9,2388.2,0.41878]
[1728044962739,0.41871,2388.7,2388.2,0.41878]
[1728044962925,0.41871,2388.7,2388.3,0.41876]
[1728044964931,0.41869,2388.8,2388.3,0.41876]
[1728044965127,3.2078,2388.9,2388.3,0.41876]
[1728044965328,0.4187,2388.7,2388.3,0.41876]
[1728044965833,0.41871,2388.7,2388.2,0.41877]
[1728044966132,0.41868,2388.8,2388.2,0.41877]
[1728044966327,0.41868,2388.8,2388.1,3.2078]
[1728044966328,0.41871,2388.7,2388.1,3.2078]
[1728044966533,0.41871,2388.7,2388.3,0.41876]
[1728044966927,3.2078,2388.9,2388.1,3.2078]
[1728044967131,3.62647,2388.9,2388.1,3.2078]
[1728044967341,3.62647,2388.9,2388.4,0.41873]
[1728044967833,0.41869,2388.8,2388.4,0.41873]
[1728044968440,0.41869,2388.8,2388.1,3.2078]
[1728044968441,3.2078,2388.9,2388.1,3.2078]
[1728044968636,0.41869,2388.8,2388.2,0.41878]
[1728044968837,3.62647,2388.9,2388.5,0.41873]
[1728044970732,3.62647,2388.9,2388.1,7.4538]
[1728044970733,3.2078,2389.2,2388.4,3.2078]
[1728044971040,3.2078,2389.7,2389.3,0.41859]
[1728044971638,3.62633,2389.7,2389.0,0.41864]
[1728044971833,3.2078,2389.7,2388.9,4.246]
[1728044972040,3.2078,2389.7,2389.3,0.41859]
[1728044972345,3.2078,2389.7,2389.2,0.4186]
[1728044972535,3.62633,2389.7,2389.2,0.4186]
[1728044973039,0.41854,2389.6,2389.2,0.4186]
[1728044973746,3.2078,2389.7,2388.9,4.246]
[1728044973933,3.2078,2389.7,2389.4,0.41856]
[1728044974132,3.2078,2389.7,2389.3,3.2078]
[1728044974342,3.2078,2389.7,2389.5,0.41855]
[1728044974639,0.41853,2389.7,2389.3,3.62638]
[1728044974836,3.2078,2389.7,2388.9,4.246]
[1728044975038,3.2078,2389.6,2388.9,4.148]
[1728044975239,0.41857,2389.5,2389.1,0.41862]
[1728044975440,3.2078,2389.6,2389.0,0.41863]
[1728044975647,0.41857,2389.4,2389.0,0.41863]
[1728044976045,3.2078,2389.6,2388.9,4.56665]
[1728044976250,0.4186,2389.3,2388.9,4.56665]
[1728044976436,0.41859,2389.4,2388.9,4.56665]
[1728044976637,3.2078,2389.6,2388.9,4.148]
[1728044976841,1.04631,2389.7,2388.9,4.148]
[1728044976842,0.41863,2389.1,2388.9,4.148]
[1728044977038,0.41863,2389.1,2388.7,0.41869]
[1728044978147,0.41862,2389.2,2388.8,0.41867]
[1728044978349,3.2078,2389.3,2388.6,3.2078]
[1728044978649,0.41861,2389.2,2388.8,0.41867]
[1728044978846,3.2078,2389.3,2388.6,3.2078]
[1728044979348,3.2078,2389.3,2388.9,0.41865]
[1728044979544,3.62639,2389.3,2388.9,0.41865]
[1728044979740,3.62639,2389.3,2388.6,3.2078]
[1728044979741,3.2078,2389.3,2388.8,0.41867]
[1728044979939,3.2078,2389.3,2388.6,3.2078]
[1728044980350,0.41866,2389.0,2388.6,3.2078]
[1728044980544,0.41861,2389.2,2388.6,3.2078]
[1728044980855,3.2078,2389.3,2388.5,3.2078]
[1728044980856,0.41869,2388.8,2388.5,3.2078]
[1728044981145,0.41869,2388.8,2388.3,0.41876]
[1728044981348,3.2078,2389.0,2388.2,3.2078]
[1728044981553,0.41869,2388.8,2388.3,0.41877]
[1728044981753,0.41873,2388.6,2388.2,3.2078]
[1728044981953,0.41869,2388.8,2388.2,3.62658]
[1728044982352,3.2078,2389.0,2388.2,3.2078]
[1728044982551,0.41869,2388.8,2388.2,3.62658]
[1728044982757,3.2078,2389.0,2388.2,3.2078]
[1728044982950,0.41871,2388.7,2388.2,3.2078]
[1728044983147,0.41871,2388.7,2388.2,3.62658]
[1728044983354,3.2078,2389.0,2388.2,3.2078]
[1728044983555,0.41868,2388.8,2388.3,0.41876]
[1728044983750,0.4187,2388.7,2388.2,3.2078]
[1728044983956,0.41874,2388.5,2388.2,3.2078]
[1728044984361,3.2078,2388.6,2388.2,3.2078]
[1728044984555,3.62652,2388.6,2388.2,3.2078]
[1728044985160,3.2078,2388.9,2388.2,3.2078]
[1728044985361,0.4187,2388.7,2388.2,3.62658]
[1728044986664,0.41869,2388.8,2388.3,0.41876]
[1728044986961,0.41868,2388.8,2388.3,0.41876]
[1728044987450,3.2078,2388.9,2388.2,3.62658]
[1728044987657,0.4187,2388.7,2388.2,3.62658]
[1728044987858,3.2078,2388.9,2388.2,3.2078]
[1728044988164,0.41863,2389.1,2388.6,3.62651]
[1728044989063,0.41861,2389.2,2388.7,0.41869]
[1728044989959,3.2078,2389.3,2388.6,3.62651]
[1728044989960,0.41863,2389.1,2388.6,3.62651]
[1728044991357,0.41863,2389.1,2388.6,0.41871]
[1728044991551,0.41866,2389.0,2388.5,0.41872]
[1728044991756,3.2078,2389.3,2388.3,3.3058]
[1728044992055,0.41864,2389.1,2388.6,0.41871]
[1728044992651,0.41864,2389.1,2388.3,3.3058]
[1728044992652,0.41866,2389.0,2388.4,0.41874]
[1728044992858,0.41866,2389.0,2388.3,3.3058]
[1728044992859,0.41866,2389.0,2388.5,0.41872]
[1728044993863,3.2078,2389.3,2388.3,3.2078]
[1728044994064,0.41863,2389.1,2388.6,0.4187]
[1728044995653,0.41864,2389.0,2388.5,0.41872]
[1728044995964,3.6264,2389.3,2388.8,0.41867]
[1728044996160,1.04637,2389.6,2388.6,3.2078]
[1728044996161,0.41862,2389.2,2388.7,0.41869]